Workbook

Sheet totals
A3: INSTRUCTIONS: Use this form when a single information collection document involves multiple reporting and recordkeeping requirements. The totals of the figures in cols. should be entered in item 13 of OMB-83-I: cols. (D) &/or (I) = 13a (respondent is only counted once); cols. F & I = 13b; cols. H & K = 13c. (F)Total/(D)Total = (E)Average (H)Total/(F)Total = (G)Average (K)Total/(I)Total = (J)Average NOTE: The columns will calculate automatically. If Col. E's response is something other than annually, i.e., 1/6 years, list as "1/6" & decimal will display. | I3: TITLE OF INFORMATION COLLECTION REQUEST | N3: OMB NO.
I5: Volunteer Application and Agreement for Natural and Cultural Resource Agencies | N5: 0596-0080
N8: DATE PREPARED:
N10: 2018-02-08
A12: IDENTIFICATION OF REPORTING OR RECORDKEEPING REQUIREMENT | H12: ANNUAL BURDEN
H14: REPORTS | M14: RECORDS
O16: TOTAL
G17: FORMS NO (S) | H17: NO. OF | I17: NO OF | J17: TOTAL ANNUAL | K17: HOURS | L17: TOTAL | M17: NO. OF | N17: ANNUAL | O17: RECORD- | P17: COST | Q17: TOTAL
A18: SECTION OF | B18: DESCRIPTION | G18: (If "none" | H18: RESPONDENTS | I18: RESPONSES | J18: RESPONSES | K18: PER | L18: HOURS | M18: RECORD- | N18: HOURS PER | O18: KEEPING HOURS | P18: PER | Q18: COST
A19: REGS. | G19: so state) | I19: PER | J19: (Col. D x E) | K19: RESPONSE | L19: (Col. F x G) | M19: KEEPERS | N19: RECORD- | O19: (Col. I x J) | P19: HOUR
I20: RESPONDENT | N20: KEEPER
A21: (A) | B21: (B) | G21: (C) | H21: (D) | I21: (E) | J21: (F) | K21: (G) | L21: (H) | M21: (I) | N21: (J) | O21: (K) | P21: (L) | Q21: (M)
B22: Volunteer Application for Natural Resource Agencies | G22: OF-301 | H22: ='301'!D10 -> 104,864 | I22: 1.0000 | J22: =H22*I22 -> 104,864.00 | K22: ='301'!G10 -> 0.15 | L22: 15,730.00 | O22: 0.00 | Q22: =SUM(L22+O22)*P22 -> $0.00
B23: Agreement for Volunteer Services | G23: OF-301a | H23: ='301a'!D11 -> 305,850 | I23: 1.0000 | J23: =H23*I23 -> 305,850.00 | K23: ='301a'!G11 -> 0.10 | L23: 30,585.00 | O23: =SUM(M23*N23) -> 0.00 | Q23: $0.00
B24: Volunteer Sign Up Form for Groups | G24: OF-301b | H24: ='301b'!D10 -> 105,420 | I24: 3.0000 | J24: 316,260.00 | K24: ='301b'!G10 -> 0.10 | L24: 31,626.00 | O24: 0.00 | Q24: $0.00
J25: =SUM(H25*I25) -> 0.00 | L25: =SUM(J25*K25) -> 0.00 | O25: 0.00 | Q25: $0.00
J26: 0.00 | L26: 0.00 | O26: 0.00 | Q26: $0.00
J27: =SUM(H27*I27) -> 0.00 | L27: =SUM(J27*K27) -> 0.00 | O27: =SUM(M27*N27) -> 0.00 | Q27: $0.00
J28: 0.00 | L28: 0.00 | O28: 0.00 | Q28: $0.00
J29: 0.00 | L29: =SUM(J29*K29) -> 0.00 | O29: 0.00 | Q29: $0.00
J30: 0.00 | L30: 0.00 | O30: 0.00 | Q30: $0.00
J31: 0.00 | L31: 0.00 | O31: 0.00 | Q31: $0.00
J32: 0.00 | L32: 0.00 | O32: 0.00 | Q32: $0.00
J33: =SUM(H33*I33) -> 0.00 | L33: =SUM(J33*K33) -> 0.00 | O33: =SUM(M33*N33) -> 0.00 | Q33: $0.00
J34: 0.00 | L34: 0.00 | O34: 0.00 | Q34: $0.00
J35: 0.00 | L35: 0.00 | O35: 0.00 | Q35: $0.00
B36: SUBTOTAL | J36: =SUM(J22:J35) -> 726,974.00 | L36: =SUM(L22:L35) -> 77,941.00 | M36: =SUM(M22:M35) -> 0.00 | O36: =SUM(O22:O35) -> 0.00 | Q36: =SUM(Q22:Q35) -> $0.00
B37: TOTAL OF ALL PAGES | J37: =SUM(J36+J66+J95+J124+J153) -> 726,974.00 | L37: =SUM(L36+L66+L95+L124+L153) -> 77,941.00 | M37: =SUM(M36+M66+M95+M124+M153) -> 0.00 | O37: =SUM(O36+O66+O95+O124+O153) -> 0.00 | Q37: =SUM(Q36+Q66+Q95+Q124+Q153) -> $0.00
A38: TOTAL - COLUMNS "F" AND "I" = OMB 831, 13 b; COLUMNS "H" AND "K" = OMB 831, 13c | J38: =SUM(J37+M37) -> 726,974.00 | L38: =SUM(L37+O37) -> 77,941.00

Sheet 301
A1: Agency | B1: Form | C1: Form # | D1: # of Respondents | E1: # of Responses per Respondent | F1: Total Annual Responses | G1: Hours per Response | H1: Total
A2: Department of the Interior; Bureau of Reclamation | B2: Volunteer Application | C2: OF-301 | D2: 1103 | E2: 1 | F2: 1103 | G2: 0.15 | H2: =PRODUCT(F2:G2) -> 165.45
A3: NPS | B3: Volunteer Application | C3: OF-301 | D3: 47051 | E3: 1 | F3: 47051 | G3: 0.15 | H3: =PRODUCT(F3:G3) -> 7057.65
A4: NOAA Office of National Marine Sanctuaries | B4: Volunteer Application | C4: OF-301 | D4: 100 | E4: 1 | F4: 100 | G4: 0.15 | H4: =PRODUCT(F4:G4) -> 15
A5: USFS | B5: Volunteer Application | C5: OF-301 | D5: 20000 | E5: 1 | F5: 20000 | G5: 0.15 | H5: =F5*G5+PRODUCT(F5:G5) -> 6000
A6: NRCS | B6: Volunteer Application | C6: OF-301 | D6: 0 | F6: 0 | G6: 0.15 | H6: =PRODUCT(F6:G6) -> 0
A7: USACE | B7: Volunteer Application | C7: OF-301 | D7: 5410 | E7: 1 | F7: 5410 | G7: 0.15 | H7: =PRODUCT(F7:G7) -> 811.5
A8: FWS | B8: Volunteer Application | C8: OF-301 | D8: 31200 | E8: 1 | F8: =D8*E8 -> 31200 | G8: 0.15 | H8: =F8*G8+PRODUCT(F8:G8) -> 9360
A9: BIA | B9: Volunteer Application | C9: OF-301 | D9: 0 | F9: 0 | H9: 0
D10: =SUM(D2:D9) -> 104864 | E10: =AVERAGE(E2:E8) -> 1 | F10: =SUM(F2:F9) -> 104864 | G10: 0.15 | H10: =PRODUCT(F10:G10) -> 15729.6

Sheet 301a
A1: Agency | B1: Form | C1: Form # | D1: # of Respondents | E1: # of Responses per Respondent | F1: Total Annual Responses | G1: Hours per Response | H1: Total
A2: Department of the Interior; Bureau of Reclamation | B2: Volunteer Agreement | C2: OF-301a | D2: 1103 | E2: 1 | F2: 1103 | G2: 0.1 | H2: =PRODUCT(F2:G2) -> 110.3
A3: NPS | B3: Volunteer Agreement | C3: OF-301a | D3: 212200 | E3: 1 | F3: 212200 | G3: 0.1 | H3: =PRODUCT(F3:G3) -> 21,220
A4: US Geological Survey (Formal Volunteers) | B4: Volunteer Agreement | C4: OF-301a | D4: 2000 | E4: 1 | F4: 2000 | G4: 0.1 | H4: =PRODUCT(F4:G4) -> 200
A5: NOAA Office of National Marine Sanctuaries | B5: Volunteer Agreement | C5: OF-301a | D5: 8500 | E5: 1 | F5: 8500 | G5: 0.1 | H5: =PRODUCT(F5:G5) -> 850
A6: USFS | B6: Volunteer Agreement | C6: OF-301a | D6: 45000 | E6: 1 | F6: 45000 | G6: 0.1 | H6: =PRODUCT(F6:G6) -> 4500
A7: NRCS | B7: Volunteer Agreement | C7: OF-301a | D7: 1,987 | E7: 1 | F7: 1,987 | G7: 0.1 | H7: =F7*G7+PRODUCT(F7:G7) -> 397.4
A8: USACE | B8: Volunteer Agreement | C8: OF-301a | D8: 15410 | E8: 1 | F8: 15410 | G8: 0.1 | H8: =PRODUCT(F8:G8) -> 1541
A9: FWS | B9: Volunteer Agreement | C9: OF-301a | D9: 19650 | F9: 19650 | G9: 0.1 | H9: =PRODUCT(F9:G9) -> 1965
A10: BIA | B10: Volunteer Agreement | C10: OF-301a | D10: 0 | F10: 0 | H10: 0
D11: =SUM(D2:D10) -> 305850 | E11: =AVERAGE(E2:E8) -> 1 | F11: =SUM(F2:F9) -> 305850 | G11: 0.1 | H11: =PRODUCT(F11:G11) -> 30585

Sheet 301b
A1: Agency | B1: Form | C1: Form # | D1: # of Respondents | E1: # of Responses per Respondent | F1: Total Annual Responses | G1: Hours per Response | H1: Total Burden Hours
A2: Department of the Interior; Bureau of Reclamation | B2: Volunteer Group Sign-up | C2: OF-301b | D2: Numbers not available – most completed applications for groups were included in the numbers above. | E2: 3
A3: NPS | B3: Volunteer Group Sign-up | C3: OF-301b | D3: 6900 | E3: 3 | F3: =PRODUCT(D3:E3) -> 20700 | G3: 0.1 | H3: =PRODUCT(F3:G3) -> 2070
A4: NOAA Office of National Marine Sanctuaries | B4: Volunteer Group Sign-up | C4: OF-301b | D4: 2800 | E4: 3 | F4: =PRODUCT(D4:E4) -> 8400 | G4: 0.1 | H4: =PRODUCT(F4:G4) -> 840
A5: USFS | B5: Volunteer Group Sign-up | C5: OF-301b | D5: 75000 | E5: 3 | F5: =PRODUCT(D5:E5) -> 225000 | G5: 0.1 | H5: =PRODUCT(F5:G5) -> 22500
A6: NRCS | B6: Volunteer Group Sign-up | C6: OF-301b | D6: 70 | E6: 3 | F6: =PRODUCT(D6:E6) -> 210 | G6: 0.1 | H6: =PRODUCT(F6:G6) -> 21
A7: USACE | B7: Volunteer Group Sign-up | C7: OF-301b | D7: 1000 | E7: 3 | F7: =PRODUCT(D7:E7) -> 3000 | G7: 0.1 | H7: =PRODUCT(F7:G7) -> 300
A8: FWS | B8: Volunteer Group Sign-up | C8: OF-301b | D8: 19650 | E8: 3 | F8: =PRODUCT(D8:E8) -> 58950 | G8: 0.1 | H8: =PRODUCT(F8:G8) -> 5895
A9: BIA | B9: Volunteer Group Sign-up | C9: OF-301b | D9: 0 | E9: 3 | F9: 0 | G9: 0.1 | H9: =PRODUCT(F9:G9) -> 0
D10: =SUM(D2:D9) -> 105420 | E10: =AVERAGE(E2:E9) -> 3 | F10: =SUM(F2:F9) -> 316260 | G10: 0.1 | H10: =SUM(H2:H9) -> 31626
